bitfinex/quotes_ETHUSD_20240822
["timestamp","ask_amount","ask_price","bid_price","bid_amount"]
[1724351125696,2.3736,2617.6,2617.2,3.82073]
[1724351126025,2.3736,2617.6,2617.3,3.8207]
[1724351126519,2.3736,2617.6,2617.2,3.82084]
[1724351127086,2.3736,2617.6,2617.2,7.64163]
[1724351127288,2.3736,2617.6,2617.3,3.8207]
[1724351127924,2.3736,2617.6,2617.2,3.82079]
[1724351128125,7.195296,2617.6,2617.2,3.82079]
[1724351128307,7.195296,2617.6,2617.0,3.82107]
[1724351128308,4.821696,2617.6,2617.0,3.82107]
[1724351128516,2.3659852,2617.5,2617.1,3.821]
[1724351129226,6.1864552,2617.5,2617.1,3.821]
[1724351130225,2.3659852,2617.5,2617.1,3.821]
[1724351130736,0.0765852,2617.5,2617.2,3.82087]
[1724351131239,6.29486,2617.7,2617.2,3.82087]
[1724351131721,0.0765852,2617.6,2617.2,3.82087]
[1724351132384,0.0765852,2617.6,2617.1,3.821]
[1724351132385,0.71372972,2617.6,2617.1,3.821]
[1724351132622,2.2757,2617.5,2617.1,3.821]
[1724351133240,0.0765852,2617.4,2617.0,3.82116]
[1724351133545,2.4333,2617.3,2617.0,3.82116]
[1724351134220,0.0765852,2617.2,2617.0,3.82116]
[1724351134720,0.0765852,2617.1,2617.0,3.82116]
[1724351135084,2.4333,2617.3,2617.0,3.82116]
[1724351135288,0.0765721,2617.2,2617.0,3.82116]
[1724351135485,2.4333,2617.3,2617.0,3.82116]
[1724351135687,0.0765721,2617.2,2617.0,3.82116]
[1724351135943,2.4333,2617.3,2617.0,3.82116]
[1724351136136,0.0765721,2617.1,2617.0,3.82116]
[1724351136307,2.4333,2617.3,2617.0,3.82116]
[1724351136613,3.058675,2617.3,2617.0,3.82116]
[1724351136803,0.0765721,2617.2,2617.0,3.82116]
[1724351136997,2.4333,2617.3,2617.0,3.82116]
[1724351137191,0.0765721,2617.2,2617.1,3.82099]
[1724351137386,2.4333,2617.3,2617.1,3.82099]
[1724351137691,0.0765721,2617.2,2617.1,3.82099]
[1724351137893,2.4333,2617.3,2617.1,3.82099]
[1724351138147,0.0765721,2617.2,2617.1,3.82099]
[1724351138636,3.82035,2617.6,2617.1,3.82099]
[1724351138637,2.4357,2617.6,2617.2,3.82087]
[1724351139623,6.256,2617.6,2617.1,3.82094]
[1724351139827,7.263622,2617.6,2617.1,7.64189]
[1724351140042,3.443322,2617.6,2617.1,3.82094]
[1724351140364,3.443322,2617.6,2617.2,3.82083]
[1724351140365,7.263622,2617.6,2617.2,3.82083]
[1724351141402,7.263622,2617.6,2617.1,3.821]
[1724351141603,2.3575,2617.4,2617.0,3.82116]
[1724351142456,6.1781,2617.4,2617.0,3.82116]
[1724351142758,7.185722,2617.4,2617.0,3.82116]
[1724351142918,7.185722,2617.4,2616.9,3.82131]
[1724351142919,2.4066,2617.3,2616.9,3.82131]
[1724351143104,6.22738,2617.3,2616.8,3.82138]
[1724351143306,6.9508622,2617.3,2616.8,3.82138]
[1724351143545,0.0765721,2617.2,2616.8,3.82138]
[1724351143799,3.1300822,2617.3,2616.8,3.82138]
[1724351144033,3.1300822,2617.3,2616.9,3.82129]
[1724351144034,0.0765721,2617.2,2616.9,3.82129]
[1724351144354,2.4066,2617.3,2617.0,3.82106]
[1724351144951,0.0765721,2617.2,2617.0,3.82106]
[1724351145248,2.4066,2617.3,2617.0,3.82106]
[1724351145455,0.0764411,2617.2,2617.0,3.82106]
[1724351145628,2.4066,2617.3,2617.0,3.82106]
[1724351145836,0.0764411,2617.2,2617.0,3.82106]
[1724351146147,2.4066,2617.3,2617.0,3.82106]
[1724351146743,0.0764411,2617.2,2617.0,3.82106]
[1724351147101,2.4066,2617.3,2616.9,3.82129]
[1724351147455,2.64726,2617.3,2616.9,3.82129]
[1724351147636,0.0764411,2617.2,2616.9,3.82129]
[1724351147937,2.64726,2617.3,2616.9,3.82129]
[1724351148107,0.0764411,2617.1,2616.9,3.82129]
[1724351148308,2.64726,2617.3,2616.9,3.82129]
[1724351148499,0.0764411,2617.0,2616.9,3.82129]
[1724351148698,6.468,2617.3,2616.9,3.82129]
[1724351148899,1.1053081,2617.2,2616.9,3.82129]
[1724351149137,0.0764411,2617.2,2616.9,3.82129]
[1724351149452,2.64726,2617.3,2616.9,3.82129]
[1724351149637,0.0764411,2617.2,2616.9,3.82129]
[1724351149946,2.64726,2617.3,2616.9,3.82129]
[1724351150110,0.0764411,2617.1,2616.9,3.82129]
[1724351150302,2.64726,2617.3,2616.9,3.82129]
[1724351150554,0.0764411,2617.2,2616.9,3.82129]
[1724351150906,2.64726,2617.3,2616.9,3.82129]
[1724351151151,0.0764411,2617.2,2616.9,3.82129]
[1724351151374,0.0764411,2617.2,2616.9,3.82122]
[1724351151573,2.4066,2617.3,2617.0,3.82113]
[1724351151763,0.0764411,2617.1,2617.0,7.64229]
[1724351152070,2.4066,2617.3,2617.0,7.64229]
[1724351152275,2.4066,2617.3,2617.0,7.64222]
[1724351152276,0.0764411,2617.2,2617.0,7.64222]
[1724351152475,2.4066,2617.3,2617.0,7.64222]
[1724351152771,0.0764411,2617.2,2617.1,3.82102]
[1724351153444,3.82036,2617.6,2617.1,3.82102]
[1724351153445,2.2646,2617.5,2617.1,3.82102]
[1724351153648,0.0764411,2617.4,2617.1,3.82102]
[1724351154873,0.0764411,2617.4,2617.0,3.82109]
[1724351156077,0.0764411,2617.4,2617.1,3.82098]
[1724351157165,0.0764411,2617.4,2617.0,3.82116]
[1724351157868,3.9404,2617.3,2617.0,3.82116]
[1724351158077,0.07647383,2617.2,2617.0,3.82116]
[1724351158275,3.9404,2617.3,2617.0,3.82116]
[1724351158476,0.07647383,2617.2,2616.9,3.8213]
[1724351158693,7.76114,2617.3,2616.8,3.82134]
[1724351158917,0.07647383,2617.2,2616.9,1.32881371]
[1724351159118,0.07647383,2617.2,2616.8,3.82134]
[1724351159329,8.53724,2617.3,2616.8,3.82134]
[1724351159528,0.07647383,2617.1,2616.8,3.82134]
[1724351159743,8.53724,2617.3,2616.8,3.82134]
[1724351159922,0.07647383,2617.0,2616.8,3.82134]
[1724351160241,0.97356603,2617.2,2616.8,3.82134]
[1724351160399,0.07647383,2616.9,2616.8,3.82134]
[1724351160738,0.07647383,2616.9,2616.8,6.10685985]
[1724351160898,2.2984,2617.3,2616.9,3.8213]
[1724351161096,0.07647383,2617.2,2617.0,0.95654799]
[1724351161310,2.2984,2617.3,2616.9,3.8213]
[1724351161514,0.07647383,2617.2,2617.0,0.95653152]
[1724351161841,0.07647383,2617.2,2617.0,3.82116]
[1724351162040,2.2984,2617.3,2617.0,3.82116]
[1724351162526,0.07647383,2617.2,2617.0,3.82116]
[1724351162918,2.2984,2617.3,2616.9,7.6425]
[1724351163116,0.07647383,2617.1,2616.9,7.6425]
[1724351163625,2.2984,2617.3,2616.9,7.64243]
[1724351163818,0.07647383,2617.0,2616.9,7.64243]
[1724351164012,2.2984,2617.3,2616.9,5.14999488]
[1724351164245,0.07647383,2617.0,2616.9,3.8212]
[1724351164403,3.074498,2617.3,2616.9,3.8212]
[1724351164603,0.07647383,2617.0,2616.9,3.8212]
[1724351165024,3.074498,2617.3,2616.9,3.8212]
[1724351165228,0.07647383,2617.0,2616.9,3.8212]
[1724351165411,2.2984,2617.3,2616.9,3.8212]
[1724351165598,0.07647383,2617.0,2616.9,3.8212]
[1724351165802,2.2984,2617.3,2616.9,3.82119]
[1724351166017,0.07647383,2617.0,2616.9,7.6425]
[1724351166392,3.82044,2617.5,2617.0,3.8211]
[1724351166943,2.4239,2617.6,2617.1,3.821]
[1724351167143,3.81997,2617.9,2617.4,3.82055]
[1724351167144,6.24383,2617.9,2617.4,3.82055]
[1724351167344,6.24383,2617.9,2617.5,3.82042]
[1724351167570,6.24383,2617.9,2617.4,3.82057]
[1724351167571,11.234319,2617.9,2617.4,3.82057]
[1724351167769,3.82001,2617.8,2617.3,7.64131]
[1724351167977,3.82001,2617.8,2617.3,3.82065]
[1724351168473,7.64012,2617.8,2617.3,3.82065]
[1724351168654,8.21923703,2617.8,2617.3,3.82065]
[1724351169474,8.21923703,2617.8,2617.2,3.82086]
[1724351169475,3.82015,2617.7,2617.2,3.82086]
[1724351169661,3.82015,2617.7,2617.0,3.67136845]
[1724351169662,6.09787,2617.6,2617.0,6.25481132]
[1724351169862,6.09787,2617.6,2617.0,5.46303]
[1724351169863,3.82044,2617.5,2617.0,5.46303]
[1724351170263,2.2775,2617.6,2617.1,5.14968983]
[1724351170464,2.2775,2617.6,2617.2,5.14945488]
[1724351170789,2.2775,2617.6,2617.2,3.82085]
[1724351170956,2.2775,2617.6,2617.2,3.82079]
[1724351171359,2.2775,2617.6,2617.2,7.64159]
[1724351171558,2.2775,2617.6,2617.2,3.82079]
[1724351172585,6.09781,2617.6,2617.2,3.82079]
[1724351172789,7.089602,2617.6,2617.2,3.82079]
[1724351173595,0.0765721,2617.5,2617.2,3.82079]
[1724351175376,0.0765721,2617.5,2617.0,9.28415]
[1724351175377,3.8970121,2617.5,2617.0,9.28415]
[1724351175599,3.8970121,2617.5,2617.0,5.46305]
[1724351175980,3.8970121,2617.5,2617.0,9.28413]
[1724351176899,0.0765721,2617.5,2617.1,3.82094]
[1724351177106,0.0765721,2617.5,2617.2,3.82087]
[1724351183577,0.0765721,2617.5,2617.2,3.82079]
[1724351183777,0.0765721,2617.5,2617.3,0.47821795]
[1724351184002,0.0765721,2617.5,2617.2,7.64159]
[1724351184271,0.0765721,2617.5,2617.0,2.43378132]
[1724351184272,0.0765721,2617.5,2617.4,5.46258]
[1724351184486,2.4815,2617.8,2617.5,3.82034]
[1724351184683,0.0765721,2617.7,2617.6,3.82027]
[1724351184913,2.4815,2617.8,2617.6,3.82027]
[1724351185139,0.0765721,2617.7,2617.6,3.82027]
[1724351185301,0.0765721,2617.7,2617.6,4.29843258]
[1724351185508,2.4815,2617.8,2617.6,3.82027]
[1724351185705,3.81954,2618.2,2617.6,3.82027]
[1724351185706,2.4521,2618.2,2617.6,2.570269]
[1724351185910,2.4521,2618.2,2617.9,3.81977]
[1724351186106,2.4521,2618.2,2617.8,5.46199]
[1724351186321,2.4521,2618.2,2617.8,3.81999]
[1724351186834,2.4521,2618.2,2617.7,3.82003]
[1724351186997,7.444793,2618.2,2617.7,3.82003]
[1724351187505,7.444793,2618.2,2617.8,3.81999]
[1724351187832,3.625373,2618.2,2617.8,3.81999]
[1724351187989,2.4521,2618.2,2617.8,3.81999]
[1724351188491,0.07644764,2618.1,2617.8,3.81999]
[1724351188718,0.07644764,2618.1,2617.9,3.81983]
[1724351189512,0.07644764,2618.1,2617.7,7.64003]
[1724351189925,0.07644764,2618.1,2617.7,3.82]
[1724351190127,0.07644764,2618.1,2617.9,3.81978]
[1724351192090,0.07644764,2618.1,2618.0,3.8197]
[1724351192323,2.4495,2618.4,2618.0,3.8197]
[1724351192636,0.07644764,2618.3,2618.0,3.8197]
[1724351192837,0.07644764,2618.3,2617.9,3.81984]
[1724351195320,5.0763544,2618.3,2617.9,3.81984]
[1724351195740,1.2570544,2618.3,2617.9,3.81984]
[1724351196128,1.2570544,2618.3,2618.0,3.81963]
[1724351196309,0.07644764,2618.3,2618.0,3.81963]
[1724351200719,0.07644764,2618.3,2618.0,7.63926]
[1724351200920,0.07644764,2618.3,2618.0,7.63927]
[1724351201209,0.07644764,2618.3,2618.2,3.81941]
[1724351201849,2.4152,2618.6,2618.3,3.81924]
[1724351202033,3.202782,2618.6,2618.3,3.81924]
[1724351202534,3.202782,2618.6,2618.1,3.81942]
[1724351202535,3.202782,2618.6,2618.2,3.8194]
[1724351203544,0.0769191,2618.5,2618.2,3.8194]
[1724351204281,0.0769191,2618.5,2618.4,7.63824]
[1724351204772,0.0769191,2618.5,2618.4,3.81912]
[1724351204979,2.4438,2618.9,2618.4,7.63817]
[1724351205272,0.0769191,2618.5,2618.4,7.63817]
[1724351205438,2.4438,2618.9,2618.4,7.63817]
[1724351205614,0.0769191,2618.5,2618.4,7.63817]
[1724351205813,2.4438,2618.9,2618.4,7.63817]
[1724351206013,0.0769191,2618.5,2618.4,7.63817]
[1724351206243,2.4438,2618.9,2618.5,3.81897]
[1724351209016,2.4438,2618.9,2618.6,3.81875]
[1724351210165,2.4438,2618.9,2618.5,4.7155185]
[1724351210374,2.4438,2618.9,2618.7,3.81867]
[1724351211776,2.4438,2618.9,2618.5,10.1763485]
[1724351212451,2.4438,2618.9,2618.6,3.81883]
[1724351214071,2.4438,2618.9,2618.5,8.5342685]
[1724351214291,2.4438,2618.9,2618.5,3.81883]
[1724351215471,2.4438,2618.9,2618.5,7.63774]
[1724351215703,2.4438,2618.9,2618.5,3.81883]
[1724351215908,2.4438,2618.9,2618.5,7.63773]
[1724351216250,2.4438,2618.9,2618.5,3.81883]
[1724351216450,2.2751,2618.8,2618.5,3.81883]
[1724351216957,2.2751,2618.8,2618.3,3.81915]
[1724351216958,2.2751,2618.7,2618.3,3.81915]
[1724351218453,2.2751,2618.7,2618.4,3.81912]
[1724351218648,0.0772987,2618.6,2618.4,3.81912]
[1724351220803,2.4073,2618.5,2618.3,3.81924]
[1724351221309,0.0771809,2618.4,2618.3,3.81924]
[1724351221698,0.0771809,2618.4,2618.3,7.63851]
[1724351222773,0.0771809,2618.4,2618.3,8.566561]
[1724351223095,2.4355,2618.7,2618.5,3.81889]
[1724351223401,2.4355,2618.7,2618.3,0.928051]
[1724351223402,2.4355,2618.7,2618.4,3.81909]
[1724351223769,2.4355,2618.7,2618.5,3.81887]
[1724351224588,2.4355,2618.7,2618.5,3.81896]
[1724351226810,2.4355,2618.7,2618.5,4.53981968]
[1724351227129,2.4355,2618.7,2618.3,4.747311]
[1724351227352,2.4355,2618.7,2618.3,3.81926]
[1724351228290,2.4355,2618.7,2618.2,3.81934]
[1724351228291,2.343,2618.6,2618.2,3.81934]
[1724351228522,6.16185,2618.6,2618.1,3.81948]
[1724351228721,2.343,2618.5,2618.1,3.81948]
[1724351229519,2.343,2618.4,2618.1,3.81948]
[1724351230132,2.343,2618.4,2618.1,7.63893]
[1724351230338,2.343,2618.4,2618.1,3.81945]
[1724351233505,2.343,2618.4,2618.1,7.63893]
[1724351233704,0.07791416,2618.3,2618.1,8.567023]
[1724351236855,0.07791416,2618.3,2618.1,8.567013]
[1724351237155,0.07791416,2618.3,2618.1,7.63892]
[1724351237744,0.07791416,2618.3,2618.2,3.81941]
[1724351238462,0.07791416,2618.3,2618.2,7.63882]
[1724351238950,2.4679,2618.7,2618.4,3.81909]
[1724351239125,0.077816,2618.6,2618.4,3.81909]
[1724351239855,0.077816,2618.6,2618.4,7.63818]
[1724351240051,0.077816,2618.6,2618.4,7.63813]
[1724351240426,0.077816,2618.6,2618.4,7.63808]
[1724351240613,0.077816,2618.6,2618.4,3.81904]
[1724351241894,0.077816,2618.6,2618.5,3.81898]
[1724351242183,0.077816,2618.6,2618.5,4.746982]
[1724351242389,6.2569,2618.9,2618.5,4.746982]
[1724351242550,0.077816,2618.8,2618.5,3.81898]
[1724351243765,0.077816,2618.8,2618.5,5.46098]
[1724351243967,0.077816,2618.8,2618.6,3.81883]
[1724351246369,0.0780058,2618.7,2618.6,3.81883]
[1724351246692,2.2732,2619.1,2618.7,3.81857]
[1724351246891,2.2732,2619.1,2618.7,5.46057]
[1724351247402,2.2732,2619.1,2618.7,9.27915]
[1724351247896,2.2732,2619.1,2618.7,3.81857]
[1724351248666,0.07813013,2619.0,2618.7,3.81857]
[1724351251283,0.69506314,2619.0,2618.3,5.46115]
[1724351251623,6.09199,2618.7,2618.1,7.63892]
[1724351251785,6.09199,2618.7,2618.2,3.8194]
[1724351252211,0.07813013,2618.6,2618.2,3.8194]
[1724351253286,2.2732,2618.5,2618.2,3.8194]
[1724351253707,0.07813013,2618.4,2618.2,3.8194]
[1724351253911,0.07813013,2618.4,2618.1,5.46145]
[1724351254231,0.07813013,2618.4,2618.0,3.81967]
[1724351254399,0.07813013,2618.4,2617.7,2.3876]
[1724351254400,3.8193,2618.3,2617.8,4.17690265]
[1724351254722,2.3126,2618.1,2617.7,3.82003]
[1724351255088,0.07784218,2618.0,2617.7,3.82003]
[1724351255590,2.3126,2617.9,2617.5,3.8203]
[1724351256103,0.07784218,2617.8,2617.5,3.8203]
[1724351256286,0.07784218,2617.8,2617.5,7.64066]
[1724351257029,0.07784218,2617.8,2617.6,3.82027]
[1724351258634,0.07784218,2617.8,2617.5,3.8203]
[1724351258635,2.4539,2617.7,2617.5,3.8203]
[1724351258987,0.07784218,2617.6,2617.3,3.82061]
[1724351259186,0.07784218,2617.6,2617.2,5.4628]
[1724351259187,6.27407,2617.7,2617.2,3.82085]
[1724351259529,0.07784218,2617.6,2617.4,3.8205]
[1724351259832,0.07784218,2617.6,2617.4,7.64099]
[1724351260616,0.07784218,2617.6,2617.4,3.82049]
[1724351261613,0.07784218,2617.6,2617.4,7.64098]
[1724351262036,0.07784218,2617.6,2617.4,3.82049]
[1724351263408,0.07784218,2617.6,2617.2,3.82077]
[1724351263607,0.07784218,2617.6,2616.7,3.51328723]
[1724351263608,2.287,2617.5,2617.1,3.82102]
[1724351263918,0.07729234,2617.4,2617.1,3.82102]
[1724351264805,0.07729234,2617.4,2617.1,7.64194]
[1724351265213,0.07729234,2617.4,2617.2,3.82086]
[1724351265414,0.07729234,2617.4,2617.1,3.82092]
[1724351265651,0.07729234,2617.4,2617.1,7.64183]
[1724351267228,0.07729234,2617.4,2617.2,3.82086]
[1724351268251,0.07729234,2617.4,2617.3,3.82073]
[1724351268472,0.07729234,2617.4,2617.3,11.46219]
[1724351268646,0.07729234,2617.4,2617.3,7.64146]
[1724351268941,2.494,2617.9,2617.5,3.82032]
[1724351269246,2.494,2617.9,2617.6,3.82028]
[1724351269443,2.494,2617.9,2617.5,3.82032]
[1724351270289,2.494,2617.9,2617.6,5.46221]
[1724351270568,2.494,2617.9,2617.6,3.82016]
[1724351270865,2.494,2617.9,2617.7,3.82006]
[1724351271266,2.494,2617.9,2617.7,3.82011]
[1724351271475,2.494,2617.9,2617.6,3.82016]
[1724351271636,2.494,2617.9,2617.7,4.202106]
[1724351271834,2.3164,2618.2,2618.0,3.8197]
[1724351272166,2.3164,2618.2,2617.8,3.81987]
[1724351272167,2.3164,2618.2,2617.8,7.63974]
[1724351272371,2.3164,2618.2,2617.8,3.81987]
[1724351272570,2.3164,2618.2,2617.9,3.8198]
[1724351272750,2.3164,2618.2,2617.9,4.62960784]
[1724351273336,2.3164,2618.4,2618.0,3.81961]
[1724351274975,2.3164,2618.4,2617.9,0.80980784]
[1724351275174,2.3164,2618.3,2617.8,3.81986]
[1724351275753,2.3164,2618.3,2617.8,7.63978]
[1724351275950,2.3164,2618.3,2617.9,3.81985]
[1724351277282,3.81942,2618.2,2617.7,3.82006]
[1724351277583,3.81942,2618.2,2617.7,4.584085]
[1724351278611,2.3304,2618.0,2617.6,3.82019]
[1724351278745,2.3304,2618.0,2617.7,3.82011]
[1724351279095,0.07705667,2617.9,2617.7,3.82011]
[1724351279333,0.07705667,2617.9,2617.6,3.82019]
[1724351279626,0.07705667,2617.9,2617.6,7.64041]
[1724351279834,0.07705667,2617.9,2617.5,3.82043]
[1724351280175,0.07705667,2617.9,2617.4,3.8205]
[1724351280176,3.89692667,2617.9,2617.4,7.64098]
[1724351280371,2.3304,2617.8,2617.4,3.82048]
[1724351280706,2.3304,2617.8,2617.4,3.82046]
[1724351280910,0.07705667,2617.7,2617.5,3.82043]
[1724351281296,2.3304,2617.8,2617.5,3.82043]
[1724351281516,0.07705667,2617.6,2617.5,3.82043]
[1724351281721,2.3304,2617.8,2617.5,3.82036]
[1724351281926,0.07705667,2617.6,2617.5,3.82036]
[1724351282134,2.3304,2617.8,2617.5,7.64072]
[1724351282297,0.07705667,2617.6,2617.5,3.82036]
[1724351282502,2.3805,2618.1,2617.5,4.584429]
[1724351282809,2.3805,2618.1,2617.7,3.82004]
[1724351285875,2.3805,2618.1,2617.5,3.82033]
[1724351285876,2.3805,2618.0,2617.6,3.82028]
[1724351286574,6.20022,2618.0,2617.4,3.82045]
[1724351286790,6.18493,2617.9,2617.3,3.82061]
[1724351286994,6.18493,2617.9,2617.5,3.82043]
[1724351288466,2.365,2617.9,2617.5,3.82037]
[1724351288753,2.365,2617.9,2617.5,3.82035]
[1724351289549,2.365,2617.9,2617.6,3.82028]
[1724351289751,2.365,2617.9,2617.7,3.82008]
[1724351289957,3.81923,2618.4,2617.2,7.167237]
[1724351289958,2.4077,2618.1,2617.8,3.81993]
[1724351291595,2.4077,2618.1,2617.7,3.82013]
[1724351293531,0.07689951,2618.0,2617.7,3.82013]
[1724351304979,0.07689951,2618.0,2617.7,0.928156]
[1724351305184,0.07689951,2618.0,2617.9,3.81985]
[1724351305386,0.07689951,2618.0,2617.9,7.6397]
[1724351305547,2.2726,2618.4,2618.1,3.81955]
[1724351305740,2.2726,2618.4,2618.1,4.58349]
[1724351305945,2.2726,2618.4,2618.1,3.81955]
[1724351306478,6.09174,2618.4,2617.9,3.81971]
[1724351307568,1.641,2618.6,2617.7,5.46102]
[1724351307569,3.8195,2618.2,2617.7,5.46102]
[1724351308567,0.07437679,2618.1,2617.7,5.46102]
[1724351309609,0.07437679,2618.1,2617.7,9.28109]
[1724351310073,0.07437679,2618.1,2617.7,5.46102]
[1724351310272,0.07437679,2618.1,2617.7,9.28109]
[1724351310471,0.07437679,2618.1,2617.8,3.81997]
[1724351310686,10.10701,2618.3,2617.8,3.81997]
[1724351310996,0.07437679,2618.0,2617.8,3.81997]
[1724351311197,11.281811,2618.3,2617.8,3.81997]
[1724351311436,0.07437679,2617.9,2617.8,3.81997]
[1724351311601,11.281811,2618.3,2617.8,3.81997]
[1724351311800,0.07437679,2617.9,2617.8,3.81997]
[1724351312026,11.281811,2618.3,2617.8,3.81997]
[1724351312181,0.57486503,2618.2,2617.8,3.81997]
[1724351312684,0.07437679,2618.1,2617.8,3.81997]
[1724351315693,0.07437679,2618.1,2617.8,7.63994]
[1724351315914,0.07437679,2618.1,2617.8,3.81997]
[1724351316227,0.07437679,2618.1,2617.8,7.6399]
[1724351316396,6.28764,2618.3,2617.9,0.47810536]
[1724351316587,0.07437679,2618.0,2617.8,3.81993]
[1724351316788,6.28764,2618.3,2617.8,3.81993]
[1724351317003,0.07437679,2617.9,2617.8,3.81993]
[1724351317188,6.28764,2618.3,2617.8,4.29803786]
[1724351317383,6.28764,2618.3,2617.8,3.81993]
[1724351317586,7.298311,2618.3,2617.8,3.81993]
[1724351317939,0.07437679,2618.2,2617.8,3.81993]
[1724351318286,7.298311,2618.3,2617.8,7.63985]
[1724351318491,0.07437679,2618.1,2617.8,7.63983]
[1724351318690,7.298311,2618.3,2617.8,7.63983]
[1724351318885,0.07437679,2618.0,2617.8,7.63983]
[1724351319091,6.28764,2618.3,2617.8,7.63983]
[1724351319390,7.298311,2618.3,2617.8,3.81991]
[1724351319799,0.07437679,2618.2,2617.8,3.81991]
[1724351320028,7.298311,2618.3,2617.8,3.81991]
[1724351320357,2.283,2618.1,2617.4,0.79552482]
[1724351320489,1.71537679,2618.2,2617.3,4.61613482]
[1724351320490,2.283,2617.7,2617.3,4.61613482]
[1724351320684,2.283,2617.7,2617.3,7.64126]
[1724351320911,2.283,2617.7,2617.4,1.641]
[1724351321115,0.07452106,2617.6,2617.5,7.64077]
[1724351321743,2.283,2618.0,2617.6,3.82016]
[1724351321890,2.283,2618.0,2617.8,3.81992]
[1724351321891,2.893267,2618.0,2617.8,3.81992]
[1724351322090,0.07452106,2617.9,2617.8,1.641]
[1724351322285,0.07452106,2617.9,2617.7,3.82003]
[1724351322528,2.283,2617.8,2617.5,7.6407]
[1724351322693,2.35752106,2617.8,2617.5,3.82035]
[1724351323116,2.35752106,2617.8,2617.5,7.64071]
[1724351323717,2.35752106,2617.8,2617.5,3.82035]
[1724351323928,2.35752106,2617.8,2617.3,7.64127]
[1724351324129,2.97526717,2617.8,2617.3,5.46163]
[1724351324330,6.79526717,2617.8,2617.3,5.46163]
[1724351324504,2.97526717,2617.8,2617.3,5.46163]
[1724351324710,2.35752106,2617.8,2617.3,5.46163]
[1724351325234,2.35752106,2617.8,2617.4,3.82058]
[1724351326835,3.82033,2617.6,2617.1,0.79552482]
[1724351327035,2.283,2617.5,2617.2,1.32865753]
[1724351327212,2.283,2617.5,2617.1,6.82094]
[1724351327213,2.3574358,2617.5,2617.1,6.82094]
[1724351327537,2.3574358,2617.5,2617.2,3.82087]
[1724351327902,0.0744358,2617.5,2617.3,3.82071]
[1724351328332,2.283,2617.7,2617.3,3.105918]
[1724351328499,0.0744358,2617.4,2617.3,5.46161]
[1724351328704,2.283,2617.7,2617.3,5.46161]
[1724351328705,2.283,2617.7,2617.4,3.82057]
[1724351329337,2.283,2617.7,2617.2,3.82073]
[1724351330097,7.74438,2617.6,2617.0,3.82103]
[1724351330298,5.080454,2617.6,2617.1,3.8209]
[1724351330571,5.080454,2617.6,2617.2,3.82086]
[1724351330704,3.439454,2617.6,2617.2,3.82086]
[1724351331105,2.283,2617.5,2617.2,3.82086]
[1724351333474,2.2838,2617.7,2617.3,5.46169]
[1724351333612,2.2838,2617.7,2617.3,1.641]
[1724351333812,2.2838,2617.7,2617.4,3.82049]
[1724351334117,2.2838,2618.0,2617.6,3.82021]
[1724351334735,6.10353,2618.0,2617.4,7.64094]
[1724351335145,6.10353,2618.0,2617.4,3.82047]
[1724351335315,3.81986,2617.9,2617.4,3.82047]
[1724351335747,2.2838,2617.8,2617.4,3.82047]
[1724351337251,2.2838,2617.8,2617.5,3.82043]
[1724351337417,2.2838,2617.8,2617.4,3.82047]
[1724351338409,0.07395049,2617.7,2617.4,3.82047]
[1724351338947,2.2838,2617.8,2617.4,3.82047]
[1724351339139,0.07395049,2617.6,2617.4,3.82047]
[1724351339455,0.07395049,2617.5,2617.4,3.82047]
[1724351339823,6.1038,2617.8,2617.4,3.82047]
[1724351340024,7.096167,2617.8,2617.4,3.82047]
[1724351340209,0.07395049,2617.7,2617.4,3.82047]
[1724351340414,7.096167,2617.8,2617.4,3.82047]
[1724351340756,0.07395049,2617.7,2617.3,3.82071]
[1724351341148,7.096167,2617.8,2617.3,3.82071]
[1724351341457,0.07395049,2617.6,2617.3,3.82071]
[1724351341752,6.1038,2617.8,2617.3,3.82071]
[1724351342063,0.07395049,2617.5,2617.3,3.82071]
[1724351345454,0.07395049,2617.5,2617.3,3.82064]
[1724351346745,3.82014,2617.7,2617.3,3.82064]
[1724351346940,0.07397673,2617.4,2617.3,3.82064]
[1724351347330,7.64037,2617.7,2617.1,9.94401]
[1724351347678,0.07397673,2617.4,2617.2,3.82086]
[1724351347857,7.64036,2617.7,2617.2,3.82086]
[1724351348032,2.3612,2617.5,2617.2,3.82086]
[1724351348626,0.07397673,2617.4,2617.2,3.82086]
[1724351350831,0.07397673,2617.4,2617.0,3.82105]
[1724351351066,3.89456673,2617.4,2617.0,3.82105]
[1724351351973,2.3579,2617.3,2616.9,1.99287069]
[1724351352168,2.3579,2617.3,2616.8,7.61686482]
[1724351352169,6.17865,2617.3,2616.8,9.60973551]
[1724351352404,0.07397673,2617.2,2616.9,1.3287182]
[1724351352539,0.07397673,2617.2,2616.9,5.1499982]
[1724351352739,2.3579,2617.3,2617.0,1.32868264]
[1724351352987,0.07397673,2617.1,2617.0,5.14984264]
[1724351353139,2.3579,2617.3,2617.0,5.14984264]
[1724351353333,0.07397673,2617.1,2617.0,3.82116]
[1724351353650,0.07397673,2617.1,2617.0,8.72872636]
[1724351353967,2.3579,2617.7,2617.0,8.72872636]
[1724351353968,2.3579,2617.7,2617.2,3.82077]
[1724351354267,2.3579,2617.7,2617.3,3.82069]
[1724351354439,2.3579,2617.7,2617.4,3.8205]
[1724351354643,3.81898,2618.5,2617.8,3.8199]
[1724351354852,6.19398,2618.3,2617.8,3.8199]
[1724351355675,2.3747,2618.3,2617.9,3.81985]
[1724351355873,3.37599,2618.3,2617.9,3.81985]
[1724351356375,7.19528,2618.3,2617.7,7.64016]
[1724351356549,7.19528,2618.3,2617.8,3.81997]
[1724351356738,11.01462,2618.3,2617.8,3.81997]
[1724351357572,11.01465,2618.3,2617.8,3.81997]
[1724351357878,0.74837603,2618.2,2617.8,3.81997]